lending/lending_fUSD_20241005
["ID","MTS","AMOUNT","RATE_DAILY","PERIOD"]
[339930476,1728160272974,-1100.09,0.00041232,120]
[339930477,1728160272983,-802.95,0.00041232,120]
[339930478,1728160272993,-843.51,0.00041232,120]
[339930479,1728160273002,-942.42,0.00041232,120]
[339930480,1728160273012,-514.36496502,0.00041232,120]
[339930481,1728160273021,-500.0,0.00041232,120]
[339930482,1728160273030,-1026.8,0.00041232,120]
[339930483,1728160273040,-1281.74,0.00041232,120]
[339930484,1728160273050,-500.0,0.00041232,120]
[339930485,1728160273059,-500.0,0.00041232,120]
[339930486,1728160273069,-500.0,0.00041232,120]
[339930487,1728160273079,-994.5,0.00041232,120]
[339930488,1728160273088,-938.76,0.00041232,120]
[339930489,1728160273098,-500.0,0.00041232,120]
[339930490,1728160273108,-500.0,0.00041232,120]
[339930491,1728160273118,-1170.38,0.00041232,120]
[339930492,1728160273128,-912.82,0.00041232,120]
[339930493,1728160273138,-1002.9,0.00041232,120]
[339930494,1728160273147,-500.0,0.00041232,120]
[339930495,1728160273156,-500.0,0.00041232,120]
[339930496,1728160273165,-500.0,0.00041232,120]
[339930497,1728160273175,-1084.38,0.00041232,120]
[339930498,1728160273184,-706.32,0.00041232,120]
[339930499,1728160273193,-1023.73,0.00041232,120]
[339930500,1728160273203,-500.0,0.00041232,120]
[339930501,1728160273213,-500.0,0.00041232,120]
[339930502,1728160273222,-500.0,0.00041232,120]
[339930503,1728160273232,-842.51,0.00041232,120]
[339930504,1728160273241,-689.81,0.00041232,120]
[339930505,1728160273250,-532.86,0.00041232,120]
[339930506,1728160273259,-500.0,0.00041232,120]
[339930507,1728160273268,-232.19518234,0.00041232,120]
[339930508,1728160273278,-500.0,0.00041232,120]
[339930509,1728160273287,-500.0,0.00041232,120]
[339930510,1728160273297,-500.0,0.00041232,120]
[339930511,1728160273306,-1071.49,0.00041232,120]
[339930512,1728160273315,-500.0,0.00041232,120]
[339930513,1728160273324,-500.0,0.00041232,120]
[339930514,1728160273333,-1043.66,0.00041232,120]
[339930515,1728160273342,-500.0,0.00041232,120]
[339930516,1728160273352,-1009.53,0.00041232,120]
[339930517,1728160273361,-360.9313984,0.00041232,120]
[339930518,1728160273370,-500.0,0.00041232,120]
[339930519,1728160273379,-787.17,0.00041232,120]
[339930520,1728160273389,-500.0,0.00041232,120]
[339930521,1728160273398,-420.54882134,0.00041232,120]
[339930522,1728160273408,-681.86,0.00041232,120]
[339930523,1728160273418,-529.07,0.00041232,120]
[339930524,1728160273427,-995.14,0.00041232,120]
[339930525,1728160273437,-500.0,0.00041232,120]
[339930526,1728160273446,-1349.08,0.00041232,120]
[339930527,1728160273455,-500.0,0.00041232,120]
[339930528,1728160273465,-500.0,0.00041232,120]
[339930529,1728160273474,-233.100605,0.00041298,120]
[339930530,1728160273483,-233.100605,0.00041398,120]
[339930531,1728160273493,-151.100605,0.00041498,120]
[339930532,1728160273502,-4100.0,0.000415,120]
[339930533,1728160273511,-233.100605,0.00041598,120]
[339930534,1728160273520,-500.0,0.00041643,120]
[339930535,1728160273530,-819.04,0.00041643,30]
[339930536,1728160273540,-500.0,0.00041643,120]
[339930537,1728160273549,-500.0,0.00041643,120]
[339930538,1728160273559,-647.24,0.00041643,120]
[339930539,1728160273568,-713.62,0.00041643,120]
[339930540,1728160273577,-500.0,0.00041643,120]
[339930541,1728160273586,-500.0,0.00041643,120]
[339930542,1728160273596,-500.0,0.00041643,120]
[339930543,1728160273605,-500.0,0.00041643,120]
[339930544,1728160273615,-500.0,0.00041643,120]
[339930545,1728160273624,-500.0,0.00041643,120]
[339930546,1728160273634,-500.0,0.00041643,120]
[339930547,1728160273643,-500.0,0.00041643,120]
[339930548,1728160273653,-500.0,0.00041643,120]
[339930549,1728160273662,-500.0,0.00041643,120]
[339930550,1728160273672,-500.0,0.00041643,120]
[339930551,1728160273681,-711.55,0.00041643,120]
[339930552,1728160273691,-596.5551847,0.00041643,120]
[339930553,1728160273700,-500.0,0.00041643,120]
[339930554,1728160273711,-500.0,0.00041643,30]
[339930555,1728160273721,-268.21542801,0.00041643,120]
[339930556,1728160273731,-500.0,0.00041643,120]
[339930557,1728160273740,-500.0,0.00041643,120]
[339930558,1728160273749,-238.14,0.00041643,120]
[339930559,1728160273759,-260.56440328,0.00041643,120]
[339930560,1728160273768,-500.0,0.00041643,120]
[339930561,1728160273778,-500.0,0.00041643,120]
[339930562,1728160273788,-664.29,0.00041643,120]
[339930563,1728160273797,-500.0,0.00041643,120]
[339930564,1728160273806,-500.0,0.00041643,30]
[339930565,1728160273816,-500.0,0.00041643,120]
[339930566,1728160273826,-500.0,0.00041643,120]
[339930567,1728160273835,-1092.13,0.00041643,120]
[339930568,1728160273844,-500.0,0.00041643,120]
[339930569,1728160273853,-500.0,0.00041643,120]
[339930570,1728160273862,-575.62,0.00041643,120]
[339930571,1728160273871,-500.0,0.00041643,120]
[339930572,1728160273880,-500.0,0.00041643,120]
[339930573,1728160273890,-500.0,0.00041643,120]
[339930574,1728160273899,-500.0,0.00041643,120]
[339930575,1728160273909,-500.0,0.00041643,120]
[339930576,1728160273918,-740.53,0.00041643,120]
[339930577,1728160273928,-500.0,0.00041643,120]
[339930578,1728160273938,-500.0,0.00041643,120]
[339930579,1728160273947,-427.5797296,0.00041643,120]
[339930580,1728160273956,-500.0,0.00041643,120]
[339930581,1728160273965,-1003.23,0.00041643,120]
[339930582,1728160273974,-500.0,0.00041643,120]
[339930583,1728160273983,-500.0,0.00041643,120]
[339930584,1728160273992,-773.95,0.00041643,120]
[339930585,1728160274002,-1041.19,0.00041643,120]
[339930586,1728160274011,-500.0,0.00041643,120]
[339930587,1728160274020,-855.74,0.00041643,120]
[339930588,1728160274030,-522.45,0.00041643,120]
[339930589,1728160274040,-165.46682257,0.00041643,120]
[339930590,1728160274049,-528.13,0.00041643,120]
[339930591,1728160274058,-208.8,0.00041643,120]
[339930592,1728160274067,-540.71,0.00041643,120]
[339930593,1728160274077,-1571.62,0.00041643,120]
[339930594,1728160274086,-906.95,0.00041643,120]
[339930595,1728160274095,-910.76,0.00041643,120]
[339930596,1728160274104,-1006.57610275,0.00041643,120]
[339930597,1728160274114,-1100.09,0.00041643,120]
[339930598,1728160274123,-802.95,0.00041643,120]
[339930599,1728160274133,-843.51,0.00041643,120]
[339930600,1728160274142,-942.42,0.00041643,120]
[339930601,1728160274151,-1026.8,0.00041643,120]
[339930602,1728160274160,-500.0,0.00041643,120]
[339930603,1728160274170,-1281.74,0.00041643,120]
[339930604,1728160274179,-624.65170851,0.00041643,120]
[339930605,1728160274188,-500.0,0.00041643,120]
[339930606,1728160274197,-500.0,0.00041643,120]
[339930607,1728160274207,-994.5,0.00041643,120]
[339930608,1728160274216,-938.76,0.00041643,120]
[339930609,1728160274225,-500.0,0.00041643,120]
[339930610,1728160274235,-584.00859804,0.00041643,120]
[339930611,1728160274244,-1170.38,0.00041643,120]
[339930612,1728160274253,-912.82,0.00041643,120]
[339930613,1728160274263,-1002.9,0.00041643,120]
[339930614,1728160274272,-500.0,0.00041643,120]
[339930615,1728160274283,-500.0,0.00041643,120]
[339930616,1728160274292,-530.67083621,0.00041643,120]
[339930617,1728160274300,-1084.38,0.00041643,120]
[339930618,1728160274309,-706.32,0.00041643,120]
[339930619,1728160274318,-1023.73,0.00041643,120]
[339930620,1728160274328,-500.0,0.00041643,120]
[339930621,1728160274337,-500.0,0.00041643,120]
[339930622,1728160274346,-500.0,0.00041643,120]
[339930623,1728160274355,-842.51,0.00041643,120]
[339930624,1728160274364,-689.81,0.00041643,120]
[339930625,1728160274373,-532.86,0.00041643,120]
[339930626,1728160274382,-500.0,0.00041643,120]
[339930627,1728160274390,-500.0,0.00041643,120]
[339930628,1728160274399,-500.0,0.00041643,120]
[339930629,1728160274409,-500.0,0.00041643,120]
[339930630,1728160274418,-1071.49,0.00041643,120]
[339930631,1728160274427,-500.0,0.00041643,120]
[339930632,1728160274437,-500.0,0.00041643,120]
[339930633,1728160274445,-1043.66,0.00041643,120]
[339930634,1728160274454,-500.0,0.00041643,120]
[339930635,1728160274463,-1009.53,0.00041643,120]
[339930636,1728160274472,-500.0,0.00041643,120]
[339930637,1728160274481,-787.17,0.00041643,120]
[339930638,1728160274490,-500.0,0.00041643,120]
[339930639,1728160274499,-681.86,0.00041643,120]
[339930640,1728160274510,-529.07,0.00041643,120]
[339930641,1728160274519,-995.14,0.00041643,120]
[339930642,1728160274531,-424.26515206,0.00041643,120]
[339930643,1728160274540,-1349.08,0.00041643,120]
[339930644,1728160274549,-541.42942411,0.00041643,120]
[339930645,1728160274559,-500.0,0.00041643,120]
[339930646,1728160274569,-233.100605,0.00041698,120]
[339930647,1728160274578,-900.0,0.00041712,60]
[339930648,1728160274588,-233.100605,0.00041798,120]
[339930649,1728160274598,-233.100605,0.00041898,120]
[339930650,1728160274607,-152.0,0.00041931,5]
[339930651,1728160274617,-151.0,0.00041963,4]
[339930652,1728160274626,-475.81389286,0.00041984,30]
[339930653,1728160274635,-151.100605,0.00041998,120]
[339930654,1728160274644,-50000.0,0.00042,32]
[339930655,1728160274654,-50000.0,0.00042,42]
[339930656,1728160274663,-20006.9617051,0.00042,2]
[339930657,1728160274673,-318.1,0.00042,57]
[339930658,1728160274682,-151.0,0.00042054,14]
[339930659,1728160274691,-151.0,0.00042054,14]
[339930660,1728160274700,-151.0,0.00042054,14]
[339930661,1728160274828,-151.0,0.00042054,14]
[339930662,1728160274838,-500.0,0.00042054,120]
[339930663,1728160274848,-819.04,0.00042054,30]
[339930664,1728160274857,-500.0,0.00042054,120]
[339930665,1728160274867,-500.0,0.00042054,120]
[339930666,1728160274876,-713.62,0.00042054,120]
[339930667,1728160274885,-452.48127024,0.00042054,120]
[339930668,1728160274895,-500.0,0.00042054,120]
[339930669,1728160274904,-615.0615303,0.00042054,120]
[339930670,1728160274914,-500.0,0.00042054,120]
[339930671,1728160274923,-500.0,0.00042054,120]
[339930672,1728160274932,-534.13805494,0.00042054,120]
[339930673,1728160274942,-500.0,0.00042054,120]
[339930674,1728160274951,-500.0,0.00042054,120]
[339930675,1728160274960,-500.0,0.00042054,120]
[339930676,1728160274969,-500.0,0.00042054,120]
[339930677,1728160274979,-500.0,0.00042054,120]
[339930678,1728160274988,-711.55,0.00042054,120]
[339930679,1728160274999,-500.0,0.00042054,120]
[339930680,1728160275009,-500.0,0.00042054,30]
[339930681,1728160275018,-500.0,0.00042054,120]
[339930682,1728160275028,-500.0,0.00042054,120]
[339930683,1728160275038,-238.14,0.00042054,120]
[339930684,1728160275047,-461.9551629,0.00042054,120]
[339930685,1728160275057,-372.96246146,0.00042054,120]
[339930686,1728160275066,-664.29,0.00042054,120]
[339930687,1728160275076,-500.0,0.00042054,120]
[339930688,1728160275085,-500.0,0.00042054,30]
[339930689,1728160275095,-500.0,0.00042054,120]
[339930690,1728160275105,-500.0,0.00042054,120]
[339930691,1728160275114,-1092.13,0.00042054,120]
[339930692,1728160275124,-500.0,0.00042054,120]
[339930693,1728160275133,-500.0,0.00042054,120]
[339930694,1728160275143,-575.62,0.00042054,120]
[339930695,1728160275152,-305.19872155,0.00042054,120]
[339930696,1728160275162,-500.0,0.00042054,120]
[339930697,1728160275171,-500.0,0.00042054,120]
[339930698,1728160275181,-500.0,0.00042054,120]
[339930699,1728160275191,-500.0,0.00042054,120]
[339930700,1728160275201,-740.53,0.00042054,120]
[339930701,1728160275210,-500.0,0.00042054,120]
[339930702,1728160275219,-500.0,0.00042054,120]
[339930703,1728160275229,-500.0,0.00042054,120]
[339930704,1728160275238,-1003.23,0.00042054,120]
[339930705,1728160275247,-290.13991457,0.00042054,120]
[339930706,1728160275256,-500.0,0.00042054,120]
[339930707,1728160275265,-773.95,0.00042054,120]
[339930708,1728160275276,-1041.19,0.00042054,120]
[339930709,1728160275285,-500.0,0.00042054,120]
[339930710,1728160275294,-855.74,0.00042054,120]
[339930711,1728160275303,-522.45,0.00042054,120]
[339930712,1728160275312,-528.13,0.00042054,120]
[339930713,1728160275322,-540.71,0.00042054,120]
[339930714,1728160275331,-1571.62,0.00042054,120]
[339930715,1728160275340,-906.95,0.00042054,120]
[339930716,1728160275349,-910.76,0.00042054,120]
[339930717,1728160275358,-1100.09,0.00042054,120]
[339930718,1728160275368,-802.95,0.00042054,120]
[339930719,1728160275377,-843.51,0.00042054,120]
[339930720,1728160275387,-942.42,0.00042054,120]
[339930721,1728160275397,-500.0,0.00042054,120]
[339930722,1728160275407,-1026.8,0.00042054,120]
[339930723,1728160275416,-1281.74,0.00042054,120]
[339930724,1728160275426,-500.0,0.00042054,120]
[339930725,1728160275435,-500.0,0.00042054,120]
[339930726,1728160275445,-994.5,0.00042054,120]
[339930727,1728160275454,-938.76,0.00042054,120]
[339930728,1728160275463,-466.56,0.00042054,120]
[339930729,1728160275473,-1170.38,0.00042054,120]
[339930730,1728160275482,-912.82,0.00042054,120]
[339930731,1728160275491,-1002.9,0.00042054,120]
[339930732,1728160275501,-500.0,0.00042054,120]
[339930733,1728160275510,-500.0,0.00042054,120]
[339930734,1728160275520,-1084.38,0.00042054,120]
[339930735,1728160275529,-706.32,0.00042054,120]
[339930736,1728160275539,-1023.73,0.00042054,120]
[339930737,1728160275548,-500.0,0.00042054,120]
[339930738,1728160275557,-500.0,0.00042054,120]
[339930739,1728160275566,-470.08827304,0.00042054,120]
[339930740,1728160275575,-842.51,0.00042054,120]
[339930741,1728160275584,-689.81,0.00042054,120]
[339930742,1728160275593,-532.86,0.00042054,120]
[339930743,1728160275603,-638.35,0.00042054,120]
[339930744,1728160275612,-500.0,0.00042054,120]
[339930745,1728160275622,-500.0,0.00042054,120]
[339930746,1728160275631,-455.44835415,0.00042054,120]
[339930747,1728160275641,-1071.49,0.00042054,120]
[339930748,1728160275651,-500.0,0.00042054,120]
[339930749,1728160275660,-505.76,0.00042054,120]
[339930750,1728160275670,-1043.66,0.00042054,120]
[339930751,1728160275679,-500.0,0.00042054,120]
[339930752,1728160275688,-1009.53,0.00042054,120]
[339930753,1728160275697,-500.0,0.00042054,120]
[339930754,1728160275707,-787.17,0.00042054,120]
[339930755,1728160275719,-500.0,0.00042054,120]
[339930756,1728160275729,-681.86,0.00042054,120]
[339930757,1728160275739,-529.07,0.00042054,120]
[339930758,1728160275748,-995.14,0.00042054,120]
[339930759,1728160275757,-1349.08,0.00042054,120]
[339930760,1728160275766,-500.0,0.00042054,120]
[339930761,1728160275775,-151.100605,0.00042098,120]
[339930762,1728160275784,-502.903869,0.00042146,120]
[339930763,1728160275794,-502.101732,0.00042146,120]
[339930764,1728160275803,-500.0,0.00042146,120]
[339930765,1728160275812,-200.0,0.00042146,120]
[339930766,1728160275822,-233.100605,0.00042198,120]
[339930767,1728160275832,-552.24,0.00042198,2]
[339930768,1728160275841,-2800.0,0.0004226,60]
[339930769,1728160275850,-3800.0,0.0004226,60]
[339930770,1728160275859,-500.0,0.0004226,60]
[339930771,1728160275869,-151.100605,0.00042298,120]
[339930772,1728160275878,-151.100605,0.00042398,120]
[339930773,1728160275886,-500.0,0.00042465,120]
[339930774,1728160275895,-819.04,0.00042465,30]
[339930775,1728160275905,-500.0,0.00042465,120]
[339930776,1728160275914,-500.0,0.00042465,120]
[339930777,1728160275923,-713.62,0.00042465,120]
[339930778,1728160275932,-500.0,0.00042465,120]
[339930779,1728160275942,-500.0,0.00042465,120]
[339930780,1728160275951,-500.0,0.00042465,120]
[339930781,1728160275961,-500.0,0.00042465,120]
[339930782,1728160275970,-500.0,0.00042465,120]
[339930783,1728160275979,-500.0,0.00042465,120]
[339930784,1728160275988,-500.0,0.00042465,120]
[339930785,1728160275998,-500.0,0.00042465,120]
[339930786,1728160276007,-711.55,0.00042465,120]
[339930787,1728160276016,-493.77233183,0.00042465,120]
[339930788,1728160276026,-500.0,0.00042465,30]
[339930789,1728160276035,-500.0,0.00042465,120]
[339930790,1728160276045,-500.0,0.00042465,120]
[339930791,1728160276054,-238.14,0.00042465,120]
[339930792,1728160276063,-664.29,0.00042465,120]
[339930793,1728160276072,-500.0,0.00042465,120]
[339930794,1728160276082,-500.0,0.00042465,30]
[339930795,1728160276091,-500.0,0.00042465,120]
[339930796,1728160276101,-500.0,0.00042465,120]
[339930797,1728160276110,-1092.13,0.00042465,120]
[339930798,1728160276120,-500.0,0.00042465,120]
[339930799,1728160276129,-500.0,0.00042465,120]
[339930800,1728160276138,-575.62,0.00042465,120]
[339930801,1728160276148,-488.35396192,0.00042465,120]
[339930802,1728160276157,-614.08351909,0.00042465,120]
[339930803,1728160276167,-500.0,0.00042465,120]
[339930804,1728160276176,-500.0,0.00042465,120]
[339930805,1728160276186,-740.53,0.00042465,120]
[339930806,1728160276195,-500.0,0.00042465,120]
[339930807,1728160276204,-163.60896447,0.00042465,120]
[339930808,1728160276213,-500.0,0.00042465,120]
[339930809,1728160276222,-1003.23,0.00042465,120]
[339930810,1728160276231,-500.0,0.00042465,120]
[339930811,1728160276241,-773.95,0.00042465,120]
[339930812,1728160276250,-1041.19,0.00042465,120]
[339930813,1728160276259,-500.0,0.00042465,120]
[339930814,1728160276268,-855.74,0.00042465,120]
[339930815,1728160276278,-522.45,0.00042465,120]
[339930816,1728160276287,-528.13,0.00042465,120]
[339930817,1728160276296,-540.71,0.00042465,120]
[339930818,1728160276305,-1571.62,0.00042465,120]
[339930819,1728160276314,-906.95,0.00042465,120]
[339930820,1728160276323,-910.76,0.00042465,120]
[339930821,1728160276333,-1100.09,0.00042465,120]
[339930822,1728160276342,-802.95,0.00042465,120]
[339930823,1728160276351,-843.51,0.00042465,120]
[339930824,1728160276361,-942.42,0.00042465,120]
[339930825,1728160276369,-500.0,0.00042465,120]
[339930826,1728160276378,-1026.8,0.00042465,120]
[339930827,1728160276388,-1281.74,0.00042465,120]
[339930828,1728160276397,-500.0,0.00042465,120]
[339930829,1728160276406,-500.0,0.00042465,120]
[339930830,1728160276415,-994.5,0.00042465,120]
[339930831,1728160276424,-938.76,0.00042465,120]
[339930832,1728160276434,-1170.38,0.00042465,120]
[339930833,1728160276444,-912.82,0.00042465,120]
[339930834,1728160276453,-1002.9,0.00042465,120]
[339930835,1728160276462,-500.0,0.00042465,120]
[339930836,1728160276471,-500.0,0.00042465,120]
[339930837,1728160276480,-1084.38,0.00042465,120]
[339930838,1728160276489,-706.32,0.00042465,120]
[339930839,1728160276498,-1023.73,0.00042465,120]
[339930840,1728160276507,-500.0,0.00042465,120]
[339930841,1728160276516,-500.0,0.00042465,120]
[339930842,1728160276525,-842.51,0.00042465,120]
[339930843,1728160276534,-689.81,0.00042465,120]
[339930844,1728160276543,-532.86,0.00042465,120]
[339930845,1728160276552,-500.0,0.00042465,120]
[339930846,1728160276561,-500.0,0.00042465,120]
[339930847,1728160276570,-1071.49,0.00042465,120]
[339930848,1728160276579,-500.0,0.00042465,120]
[339930849,1728160276588,-1043.66,0.00042465,120]
[339930850,1728160276597,-500.0,0.00042465,120]
[339930851,1728160276606,-1009.53,0.00042465,120]
[339930852,1728160276615,-500.0,0.00042465,120]
[339930853,1728160276624,-787.17,0.00042465,120]
[339930854,1728160276633,-500.0,0.00042465,120]
[339930855,1728160276642,-681.86,0.00042465,120]
[339930856,1728160276651,-529.07,0.00042465,120]
[339930857,1728160276660,-995.14,0.00042465,120]
[339930858,1728160276670,-1349.08,0.00042465,120]
[339930859,1728160276679,-500.0,0.00042465,120]
[339930860,1728160276688,-160.76,0.00042466,2]
[339930861,1728160276697,-151.100605,0.00042498,120]
[339930862,1728160276706,-10024.66800831,0.000425,120]
[339930863,1728160276718,-3648.31740996,0.000425,60]
[339930864,1728160276730,-168.65437,0.000427,30]
[339930865,1728160276739,-652.538585,0.000427,30]
[339930866,1728160276749,-1639.289298,0.000427,30]
[339930867,1728160276759,-188.306496,0.000427,30]
[339930868,1728160276768,-157.1514,0.000427,30]
[339930869,1728160276778,-184.150902,0.000427,30]
[339930870,1728160276787,-900.0,0.00042808,60]
[339930871,1728160276796,-10672.0139756,0.00042869,2]
[339930872,1728160276805,-2543.1210784,0.00042869,2]
[339930873,1728160276814,-151.0,0.00042869,14]
[339930874,1728160276825,-3971.318087,0.00042869,2]
[339930875,1728160276834,-57097.1913207,0.00042869,2]
[339930876,1728160276843,-500.0,0.00042876,120]
[339930877,1728160276852,-819.04,0.00042876,30]
[339930878,1728160276861,-500.0,0.00042876,120]
[339930879,1728160276870,-640.0477474,0.00042876,120]
[339930880,1728160276880,-713.62,0.00042876,120]
[339930881,1728160276889,-500.0,0.00042876,120]
[339930882,1728160276898,-500.0,0.00042876,120]
[339930883,1728160276907,-500.0,0.00042876,120]
[339930884,1728160276916,-500.0,0.00042876,120]
[339930885,1728160276926,-500.0,0.00042876,120]
[339930886,1728160276935,-500.0,0.00042876,120]
[339930887,1728160276943,-500.0,0.00042876,120]
[339930888,1728160276953,-500.0,0.00042876,120]
[339930889,1728160276962,-711.55,0.00042876,120]
[339930890,1728160276971,-500.0,0.00042876,30]
[339930891,1728160276980,-500.0,0.00042876,120]
[339930892,1728160276989,-500.0,0.00042876,120]
[339930893,1728160276998,-238.14,0.00042876,120]
[339930894,1728160277007,-664.29,0.00042876,120]
[339930895,1728160277017,-500.0,0.00042876,120]
[339930896,1728160277026,-500.0,0.00042876,30]
[339930897,1728160277035,-500.0,0.00042876,120]
[339930898,1728160277044,-500.0,0.00042876,120]
[339930899,1728160277053,-1092.13,0.00042876,120]
[339930900,1728160277062,-500.0,0.00042876,120]
[339930901,1728160277071,-500.0,0.00042876,120]
[339930902,1728160277081,-575.62,0.00042876,120]
[339930903,1728160277090,-212.9159556,0.00042876,120]
[339930904,1728160277100,-380.69489999,0.00042876,120]
[339930905,1728160277109,-740.53,0.00042876,120]
[339930906,1728160277118,-339.90166606,0.00042876,120]
[339930907,1728160277127,-500.0,0.00042876,120]
[339930908,1728160277137,-1003.23,0.00042876,120]
[339930909,1728160277146,-500.0,0.00042876,120]
[339930910,1728160277155,-773.95,0.00042876,120]
[339930911,1728160277164,-1041.19,0.00042876,120]
[339930912,1728160277173,-246.50632096,0.00042876,120]
[339930913,1728160277182,-855.74,0.00042876,120]
[339930914,1728160277191,-522.45,0.00042876,120]
[339930915,1728160277201,-528.13,0.00042876,120]
[339930916,1728160277210,-540.71,0.00042876,120]
[339930917,1728160277219,-1571.62,0.00042876,120]
[339930918,1728160277228,-906.95,0.00042876,120]
[339930919,1728160277237,-910.76,0.00042876,120]
[339930920,1728160277246,-1100.09,0.00042876,120]
[339930921,1728160277255,-802.95,0.00042876,120]
[339930922,1728160277264,-843.51,0.00042876,120]
[339930923,1728160277274,-942.42,0.00042876,120]
[339930924,1728160277283,-500.0,0.00042876,120]
[339930925,1728160277292,-1026.8,0.00042876,120]
[339930926,1728160277301,-1281.74,0.00042876,120]
[339930927,1728160277310,-500.0,0.00042876,120]
[339930928,1728160277319,-500.0,0.00042876,120]
[339930929,1728160277328,-994.5,0.00042876,120]
[339930930,1728160277337,-938.76,0.00042876,120]
[339930931,1728160277346,-1170.38,0.00042876,120]
[339930932,1728160277356,-912.82,0.00042876,120]
[339930933,1728160277487,-1002.9,0.00042876,120]
[339930934,1728160277497,-500.0,0.00042876,120]
[339930935,1728160277506,-156.18527766,0.00042876,120]
[339930936,1728160277516,-1084.38,0.00042876,120]
[339930937,1728160277525,-706.32,0.00042876,120]
[339930938,1728160277534,-1023.73,0.00042876,120]
[339930939,1728160277543,-500.0,0.00042876,120]
[339930940,1728160277553,-500.0,0.00042876,120]
[339930941,1728160277562,-842.51,0.00042876,120]
[339930942,1728160277571,-689.81,0.00042876,120]
[339930943,1728160277580,-532.86,0.00042876,120]
[339930944,1728160277589,-500.0,0.00042876,120]
[339930945,1728160277598,-500.0,0.00042876,120]
[339930946,1728160277608,-1071.49,0.00042876,120]
[339930947,1728160277617,-500.0,0.00042876,120]
[339930948,1728160277626,-1043.66,0.00042876,120]
[339930949,1728160277635,-500.0,0.00042876,120]
[339930950,1728160277644,-1009.53,0.00042876,120]
[339930951,1728160277653,-500.0,0.00042876,120]
[339930952,1728160277662,-787.17,0.00042876,120]
[339930953,1728160277671,-500.0,0.00042876,120]
[339930954,1728160277681,-681.86,0.00042876,120]
[339930955,1728160277689,-529.07,0.00042876,120]
[339930956,1728160277699,-995.14,0.00042876,120]
[339930957,1728160277708,-1349.08,0.00042876,120]
[339930958,1728160277717,-500.0,0.00042876,120]
[339930959,1728160277726,-4434938.49949664,0.00042898,19]
[339930960,1728160277735,-151.0,0.00042898,14]
[339930961,1728160277744,-151.0,0.00042898,14]
[339930962,1728160277753,-151.0,0.00042898,14]
[339930963,1728160277762,-151.0,0.00042898,14]
[339930964,1728160277771,-151.0,0.00042898,14]
[339930965,1728160277784,-151.0,0.00042898,14]
[339930966,1728160277793,-151.0,0.00042898,14]
[339930967,1728160277802,-151.0,0.00042898,14]
[339930968,1728160277811,-151.0,0.00042898,14]
[339930969,1728160277820,-151.0,0.00042898,14]
[339930970,1728160277829,-151.0,0.00042898,14]
[339930971,1728160277838,-151.0,0.00042898,14]
[339930972,1728160277847,-151.0,0.00042898,14]
[339930973,1728160277856,-151.0,0.00042898,14]
[339930974,1728160277865,-295.22384,0.00042898,14]
[339930975,1728160277875,-295.22384,0.00042898,14]